bitfinex/quotes_ETHUSD_20251021
["timestamp","ask_amount","ask_price","bid_price","bid_amount"]
[1761074442487,10.03407459,4027.3,4027.2,2.48511481]
[1761074442488,1.5552,4027.3,4027.2,2.48511481]
[1761074442686,4.7172,4027.3,4027.2,0.002]
[1761074442922,4.7172,4027.3,4027.2,2.48511481]
[1761074445521,4.7172,4027.3,4027.2,0.002]
[1761074445725,4.9947,4027.3,4027.2,0.002]
[1761074447223,4.7172,4027.3,4027.2,0.002]
[1761074447826,11.0572,4027.3,4027.2,0.002]
[1761074448328,11.0572,4027.3,4027.2,2.48511481]
[1761074448648,11.0572,4027.3,4027.2,0.002]
[1761074448941,11.3347,4027.3,4027.2,0.002]
[1761074451909,11.84158,4027.3,4027.2,0.002]
[1761074452132,14.32463316,4027.3,4027.2,0.002]
[1761074452333,27.18029616,4027.3,4027.2,0.002]
[1761074452505,25.51420616,4027.3,4027.2,0.002]
[1761074453207,18.34808116,4027.3,4027.2,0.002]
[1761074453929,16.61378716,4027.3,4027.2,0.002]
[1761074454133,11.84158,4027.3,4027.2,0.002]
[1761074454633,11.56408,4027.3,4027.2,0.002]
[1761074455004,11.84158,4027.3,4027.2,0.002]
[1761074458748,18.4929773,4027.3,4027.2,0.002]
[1761074459048,18.10364594,4027.3,4027.2,0.002]
[1761074460659,20.5866991,4027.3,4027.2,0.002]
[1761074461451,20.3091991,4027.3,4027.2,0.002]
[1761074461633,20.3091991,4027.3,4027.1,0.002]
[1761074461634,12.499779,4027.2,4027.1,0.002]
[1761074461976,4.82269481,4027.2,4027.1,0.002]
[1761074462262,11.48614594,4027.2,4027.1,0.002]
[1761074462976,14.24676075,4027.2,4027.1,0.002]
[1761074463127,13.96926075,4027.2,4027.1,0.002]
[1761074463364,14.24676075,4027.2,4027.1,0.002]
[1761074463795,13.96926075,4027.2,4027.1,0.002]
[1761074464908,11.48614594,4027.2,4027.1,0.002]
[1761074465102,1.5552,4027.2,4027.1,0.002]
[1761074465410,1.33060171,4028.5,4027.1,0.002]
[1761074465411,3.162,4027.4,4027.1,0.6764]
[1761074465561,1.5552,4027.3,4027.2,2.48307237]
[1761074465756,1.5552,4027.3,4027.1,0.6764]
[1761074465757,4.30997045,4027.3,4027.1,0.002]
[1761074465960,7.81726594,4027.2,4027.1,0.002]
[1761074466219,1.5552,4027.2,4027.1,0.002]
[1761074466359,1.5552,4027.2,4027.1,0.6764]
[1761074466558,1.5552,4027.2,4027.1,3.15957647]
[1761074466883,1.5552,4027.2,4027.1,0.6764]
[1761074467190,1.5552,4027.2,4027.1,0.002]
[1761074467978,1.5552,4027.2,4027.1,0.6764]
[1761074470992,1.5552,4027.2,4027.1,3.15957647]
[1761074471897,1.5552,4027.2,4027.1,0.6764]
[1761074472493,1.5552,4027.2,4027.1,3.15957647]
[1761074473278,1.5552,4027.2,4027.1,0.6764]
[1761074474098,1.5552,4027.2,4027.1,3.15957647]
[1761074474513,1.5552,4027.2,4027.1,0.6764]
[1761074474997,1.5552,4027.2,4027.1,0.2163]
[1761074475185,1.5552,4027.2,4027.1,0.002]
[1761074475592,1.5552,4027.2,4027.1,0.4621]
[1761074476299,1.5552,4027.2,4027.1,0.6764]
[1761074481614,7.81726594,4027.2,4027.1,0.002]
[1761074482010,10.57208075,4027.2,4027.1,0.002]
[1761074482612,7.81726594,4027.2,4027.1,0.002]
[1761074483221,1.5552,4027.2,4027.1,0.002]
[1761074484327,0.001,4027.6,4027.1,0.6911]
[1761074484517,0.001,4027.6,4027.2,0.4725]
[1761074484518,1.5552,4027.4,4027.2,0.4725]
[1761074485108,1.5552,4027.4,4027.1,0.2186]
[1761074485728,1.5552,4027.4,4027.2,0.4725]
[1761074485943,1.5552,4027.4,4027.2,2.95559522]
[1761074486320,1.5552,4027.4,4027.3,0.4725]
[1761074486845,1.5552,4027.4,4027.3,2.95555316]
[1761074488812,1.5552,4027.4,4027.1,0.002]
[1761074489147,1.5552,4027.4,4027.1,2.48517461]
[1761074489825,1.5552,4027.4,4027.1,0.002]
[1761074491050,1.5562,4027.6,4027.1,3.1742643]
[1761074491270,0.001,4027.6,4027.5,2.48292985]
[1761074491567,0.001,4027.6,4027.5,5.66975914]
[1761074491862,0.001,4027.6,4027.5,16.37949579]
[1761074492352,0.001,4027.6,4027.5,10.11742985]
[1761074492557,0.001,4027.6,4027.5,12.07833324]
[1761074494359,0.001,4027.6,4027.5,12.17785887]
[1761074498634,0.001,4027.6,4027.5,18.94680481]
[1761074498930,1e-08,4028.3,4028.2,2.48249838]
[1761074499264,1e-08,4028.3,4028.2,13.67736432]
[1761074499577,1e-08,4028.3,4028.2,15.95295157]
[1761074499936,1e-08,4028.3,4028.2,19.95295157]
[1761074500456,1e-08,4028.3,4028.2,15.95295157]
[1761074500754,1e-08,4028.3,4028.2,18.43544995]
[1761074501782,1e-08,4028.3,4028.2,5.80308725]
[1761074502077,1e-08,4028.3,4027.4,1.31397349]
[1761074502078,0.46440001,4028.3,4027.1,0.2186]
[1761074502236,0.46440001,4028.3,4027.7,2.4827899]
[1761074502743,0.46440001,4028.3,4027.6,2.48286068]
[1761074503862,0.46440001,4028.3,4027.7,2.48279819]
[1761074504062,0.46440001,4028.3,4027.3,7.161]
[1761074504264,1e-08,4028.3,4027.8,2.48270112]
[1761074504457,1e-08,4028.3,4027.7,2.48278769]
[1761074504638,1e-08,4028.3,4027.8,2.48273642]
[1761074504839,1e-08,4028.3,4027.9,2.48265776]
[1761074505169,1e-08,4028.3,4027.4,0.4725]
[1761074505362,1e-08,4028.3,4027.7,2.4827839]
[1761074505735,1e-08,4028.3,4027.8,2.48274393]
[1761074506162,0.46440001,4028.3,4027.8,2.48274393]
[1761074506361,1e-08,4028.3,4027.7,2.48279391]
[1761074506669,0.46440001,4028.3,4027.8,2.48274201]
[1761074506840,1e-08,4028.3,4028.0,2.48260238]
[1761074507157,1e-08,4028.3,4027.7,2.48280656]
[1761074507158,1e-08,4028.3,4028.1,2.48254794]
[1761074507362,1e-08,4028.3,4028.0,2.48260114]
[1761074507564,1.55520001,4028.3,4027.8,2.48274492]
[1761074507735,2.01960001,4028.3,4027.9,2.48267892]
[1761074508136,0.4644,4028.2,4027.5,2.48292985]
[1761074508353,6.26206594,4028.1,4027.4,3.161]
[1761074508865,6.48866594,4027.5,4027.1,0.002]
[1761074509163,0.4644,4027.4,4027.1,0.002]
[1761074512175,6.26206594,4027.2,4027.1,0.002]
[1761074512373,9.42306594,4027.2,4027.1,0.002]
[1761074512543,9.88746594,4027.2,4027.1,0.002]
[1761074516059,0.6647,4027.9,4027.1,0.002]
[1761074516258,6.26206594,4027.2,4027.1,0.002]
[1761074516748,6.70676594,4027.2,4027.1,0.002]
[1761074518350,9.86776594,4027.2,4027.1,0.002]
[1761074519048,14.41296075,4027.2,4027.1,0.002]
[1761074519297,28.93767369,4027.2,4027.1,0.002]
[1761074519789,22.67560775,4027.2,4027.1,0.002]
[1761074519945,28.93767369,4027.2,4027.1,0.002]
[1761074520383,2.4832802,4027.0,4026.6,0.002]
[1761074520687,2.4832802,4027.0,4025.1,0.002]
[1761074520688,2.06208,4026.3,4025.1,0.002]
[1761074520979,2.70337714,4026.8,4025.1,0.002]
[1761074520980,4.2595486,4025.2,4025.1,0.002]
[1761074521184,7.9274286,4025.2,4025.1,0.002]
[1761074521385,7.9274286,4025.2,4024.8,0.002]
[1761074521386,21.50950502,4024.9,4024.8,0.002]
[1761074521551,8.09281377,4024.9,4024.8,0.002]
[1761074521976,8.09381377,4024.9,4024.8,0.002]
[1761074522282,13.15331477,4024.9,4024.8,0.002]
[1761074523078,14.00281177,4024.9,4024.8,0.002]
[1761074524080,18.75706777,4024.9,4024.8,0.002]
[1761074524285,1.5552,4024.9,4024.8,0.002]
[1761074524470,10.08103377,4024.9,4024.8,0.002]
[1761074524655,10.58791377,4024.9,4024.8,0.002]
[1761074525082,12.84592977,4024.9,4024.8,0.002]
[1761074525974,18.14872777,4024.9,4024.8,0.002]
[1761074526176,12.745592,4024.9,4024.8,0.002]
[1761074526377,5.1064,4024.9,4024.8,0.002]
[1761074526557,5.61328,4024.9,4024.8,0.002]
[1761074526756,8.09781377,4024.9,4024.8,0.002]
[1761074527201,50.18279602,4024.9,4024.8,0.002]
[1761074527360,34.85110564,4024.8,4024.7,0.002]
[1761074527554,35.23330564,4024.8,4024.7,0.002]
[1761074527760,24.26913564,4024.8,4024.7,0.002]
[1761074527994,19.22367864,4024.8,4024.7,0.002]
[1761074528194,18.02299264,4024.8,4024.7,0.002]
[1761074528494,2.400408,4024.8,4024.7,0.002]
[1761074528697,8.0968755,4024.8,4024.7,0.002]
[1761074528893,7.5899955,4024.8,4024.7,0.002]
[1761074529098,8.48653491,4024.8,4024.7,0.002]
[1761074530064,4.81165491,4024.8,4024.7,0.002]
[1761074530264,8.48753491,4024.8,4024.7,0.002]
[1761074531462,6.00593941,4024.8,4024.7,0.002]
[1761074531658,3.56165941,4024.8,4024.7,0.002]
[1761074531985,3.172,4024.8,4024.7,0.002]
[1761074532299,5.1094,4024.8,4024.7,0.002]
[1761074532465,4.7272,4024.8,4024.7,0.002]
[1761074533161,31.2183715,4024.8,4024.7,0.002]
[1761074533360,20.3356255,4024.8,4024.7,0.002]
[1761074533874,19.5126675,4024.8,4024.7,0.002]
[1761074534076,19.2797675,4024.8,4024.7,0.002]
[1761074534600,37.79785875,4024.8,4024.7,0.002]
[1761074535179,43.24177775,4024.8,4024.7,0.002]
[1761074535796,34.77856275,4024.8,4024.7,0.002]
[1761074536164,43.27729475,4024.8,4024.7,0.002]
[1761074536878,43.27729475,4024.8,4023.9,0.002]
[1761074536879,25.10229246,4024.0,4023.9,0.002]
[1761074537094,48.65201385,4024.0,4023.9,0.002]
[1761074537295,0.50688,4022.8,4021.7,0.4431]
[1761074537463,1.5552,4022.6,4021.5,0.2186]
[1761074537670,3.174,4022.6,4022.2,0.4431]
[1761074537998,3.174,4022.6,4022.1,2.48621784]
[1761074537999,4.7292,4022.6,4022.1,0.4431]
[1761074538200,4.7292,4022.6,4022.0,0.2214]
[1761074538590,4.7292,4022.6,4022.0,2.70771513]
[1761074538902,4.7292,4022.6,4022.0,0.2214]
[1761074539401,4.7292,4022.6,4021.5,0.2186]
[1761074539402,8.16393435,4022.6,4021.5,0.2186]
[1761074539807,13.82603435,4022.6,4021.5,0.2186]
[1761074540002,10.70109435,4022.6,4021.5,0.2186]
[1761074540167,10.31939635,4022.6,4021.5,0.2186]
[1761074540369,10.31939635,4022.6,4021.0,1.625]
[1761074540370,56.6820256,4022.6,4021.0,1.625]
[1761074540566,9.73951467,4021.7,4021.0,1.625]
[1761074540771,12.92051467,4021.7,4021.0,1.625]
[1761074541002,13.36061467,4021.7,4021.0,1.625]
[1761074541373,34.47972767,4021.7,4021.0,1.625]
[1761074541569,21.12288567,4021.7,4021.0,1.625]
[1761074541894,13.22955967,4021.7,4021.0,1.625]
[1761074542542,8.16969067,4021.7,4021.0,1.625]
[1761074542692,10.54973467,4021.7,4021.0,1.625]
[1761074543239,29.06782592,4021.7,4021.0,1.625]
[1761074543440,43.02325192,4021.7,4021.0,1.625]
[1761074543588,42.52391092,4021.7,4021.0,1.625]
[1761074544193,2.99376169,4021.1,4021.0,1.625]
[1761074544427,44.64294694,4021.1,4021.0,1.625]
[1761074544724,42.12324494,4021.1,4021.0,1.625]
[1761074545222,42.51327922,4021.1,4021.0,1.625]
[1761074545396,26.68915294,4021.1,4021.0,1.625]
[1761074545601,36.67793894,4021.1,4021.0,1.625]
[1761074545798,4.54902354,4021.0,4020.7,0.002]
[1761074546009,22.64413054,4021.0,4020.7,0.002]
[1761074546411,13.88212254,4021.0,4020.7,0.002]
[1761074546850,13.88212254,4021.0,4019.3,1.625]
[1761074546851,2.99481352,4019.4,4019.3,1.625]
[1761074547049,3.69188,4019.4,4019.3,1.625]
[1761074547222,2.06208,4019.4,4019.3,1.625]
[1761074547412,5.24708,4019.4,4019.3,1.625]
[1761074548249,2.06208,4019.4,4019.3,1.625]
[1761074548414,5.24708,4019.4,4019.3,1.625]
[1761074549216,2.06208,4019.4,4019.3,1.625]
[1761074549445,5.24608,4019.4,4019.3,1.625]
[1761074550653,1.5552,4019.4,4019.3,1.625]
[1761074550828,4.7392,4019.4,4019.3,2.0555]
[1761074551015,5.24608,4019.4,4019.3,1.625]
[1761074551348,7.73401352,4019.4,4019.3,1.625]
[1761074551561,14.55056952,4019.4,4019.3,1.625]
[1761074551848,14.98046952,4019.4,4019.3,1.625]
[1761074552046,11.76727052,4019.4,4019.3,1.625]
[1761074552257,9.84957052,4019.4,4019.3,1.625]
[1761074553153,7.73401352,4019.4,4019.3,1.625]
[1761074553358,1.5552,4019.4,4019.3,1.625]
[1761074553578,7.23013352,4019.4,4019.3,1.625]
[1761074553788,17.80932852,4019.4,4019.3,1.625]
[1761074553993,4.04319542,4019.3,4017.2,0.2186]
[1761074554152,0.50688,4018.3,4017.2,0.2186]
[1761074554351,2.06208,4018.1,4017.3,0.4305]
[1761074554584,18.51809125,4018.5,4017.3,0.4305]
[1761074554585,2.06208,4017.9,4017.3,0.4305]
[1761074554787,0.2004,4018.6,4017.3,0.4305]
[1761074554788,0.30443014,4019.3,4017.3,0.4305]
[1761074554951,0.4468,4019.7,4018.4,0.2163]
[1761074554952,0.7,4019.2,4018.4,0.2163]
[1761074555150,0.2053,4019.6,4018.4,0.2163]
[1761074555151,1.5552,4019.0,4018.4,0.2163]
[1761074555455,0.2053,4019.6,4018.4,0.2163]
[1761074555456,0.50688,4018.7,4018.4,0.2163]
[1761074555649,0.2276,4019.7,4018.4,0.6468]
[1761074555891,2.48806286,4019.2,4018.4,0.6488]
[1761074556182,1.5552,4019.0,4018.4,0.6488]
[1761074556389,0.50688,4018.7,4018.4,0.2183]
[1761074556549,1.5552,4018.5,4018.4,0.2183]
[1761074556884,4.7542,4018.5,4018.4,0.2183]
[1761074557568,4.7542,4018.5,4018.4,0.6488]
[1761074558275,4.7552,4018.5,4018.4,0.6488]
[1761074558882,4.7552,4018.5,4018.4,3.13735265]
[1761074559093,4.7552,4018.5,4018.4,0.6488]
[1761074559449,4.7552,4018.5,4018.4,3.13735265]
[1761074559985,1.5552,4018.5,4018.4,0.6488]
[1761074560191,4.7532,4018.5,4018.4,0.6488]
[1761074560387,1.5552,4018.5,4018.4,0.6488]
[1761074561406,1.5552,4018.5,4018.4,3.13735265]
[1761074561726,1.5552,4018.5,4018.4,0.6488]
[1761074561921,1.5552,4018.5,4018.4,3.13735265]
[1761074562127,1.5552,4019.0,4018.4,1.21140245]
[1761074562338,1.5552,4018.8,4018.5,2.91894432]
[1761074562528,1.5552,4018.8,4018.6,2.4884136]
[1761074562727,1.5552,4018.8,4018.6,0.4305]
[1761074563022,1.5552,4018.8,4018.7,0.4305]
[1761074563422,1.5552,4018.8,4018.7,2.91886688]
[1761074564377,1.5552,4018.8,4018.7,0.4305]
[1761074564983,1.5552,4018.8,4018.7,2.91886688]
[1761074565384,0.61777486,4019.7,4018.7,2.91886688]
[1761074565624,0.12210408,4020.6,4018.7,2.91886688]
[1761074565625,2.48724615,4020.6,4019.6,0.2214]
[1761074565830,3.195,4020.3,4019.6,0.2214]
[1761074565984,2.06208,4020.2,4019.6,0.2214]
[1761074566405,0.50688,4020.2,4019.6,0.2214]
[1761074566620,2.06208,4020.2,4019.6,0.2214]
[1761074566806,2.48717821,4020.7,4019.6,2.70919238]
[1761074567009,0.2276,4020.8,4019.6,0.6519]
[1761074567210,2.48701812,4020.9,4019.6,0.6519]
[1761074567211,2.65485946,4021.3,4019.7,0.45537747]
[1761074567396,8.78187085,4021.2,4019.8,2.48768595]
[1761074567621,2.48693976,4021.1,4019.9,2.51247198]
[1761074567822,0.50688,4021.0,4020.1,2.48744201]
[1761074568024,2.65486029,4021.3,4020.3,2.48732684]
[1761074568025,0.1681,4021.3,4020.3,2.48732684]
[1761074568224,18.73979125,4021.8,4019.7,0.31646459]
[1761074568225,0.6651,4021.8,4020.4,0.02487314]
[1761074568423,7.373611,4021.6,4020.3,2.91785956]
[1761074568633,2.48663221,4021.6,4020.6,2.48718533]
[1761074568837,2.098852,4021.6,4020.6,2.48718533]
[1761074569037,2.098852,4021.6,4020.5,0.4305]
[1761074569038,2.06208,4021.2,4020.5,0.4305]
[1761074569238,3.194,4021.1,4020.5,2.91774953]
[1761074569952,3.194,4021.1,4020.6,2.91768256]
[1761074570335,3.194,4021.1,4020.7,0.4305]
[1761074572542,3.194,4021.1,4019.6,0.2214]
[1761074572543,0.50688,4020.7,4019.6,0.2214]
[1761074572730,0.50688,4020.7,4018.4,1.09428233]
[1761074572731,2.48757176,4020.0,4019.3,0.4305]
[1761074572922,3.193,4019.9,4019.3,0.6519]
[1761074573454,3.193,4019.9,4019.3,3.13988204]
[1761074574042,3.193,4019.9,4019.3,0.6519]
[1761074574438,3.193,4019.9,4019.3,3.13989541]
[1761074574844,3.193,4019.9,4019.4,2.48792639]
[1761074575042,3.38417369,4020.6,4019.3,0.2214]
[1761074575229,0.50688,4020.4,4019.4,0.4301]
[1761074575557,0.50688,4020.4,4019.4,2.91801319]
[1761074575743,2.99419589,4020.4,4019.5,2.48786329]
[1761074576057,3.193,4020.3,4019.7,2.48774784]
[1761074576269,3.193,4020.3,4020.0,2.48755355]
[1761074576432,3.193,4020.3,4020.1,0.4301]
[1761074576636,2.99401696,4020.7,4020.1,0.4301]
[1761074576860,0.50688,4020.6,4020.1,0.4301]
[1761074577060,6.18707766,4020.6,4020.1,0.4301]
[1761074577334,3.193,4020.5,4020.1,0.4301]
[1761074577666,3.193,4020.4,4019.9,2.48761618]
[1761074577853,3.193,4020.3,4019.9,2.91771966]
[1761074578032,3.193,4020.3,4019.9,2.48761966]
[1761074578237,3.193,4020.3,4019.8,2.91773337]
[1761074578455,1.5552,4020.5,4019.9,2.91770628]
[1761074578657,3.193,4020.4,4019.9,0.4301]
[1761074578962,1.5552,4020.3,4019.9,2.91767168]
[1761074579338,0.6234,4020.9,4020.0,2.91765344]
[1761074579536,7.74116045,4020.8,4020.0,2.91765344]
[1761074579758,2.06208,4020.6,4020.0,2.91765344]
[1761074580379,2.48729447,4020.5,4019.7,2.91779061]
[1761074580585,1.5552,4020.3,4019.7,2.91779061]
[1761074580750,1.5552,4020.3,4019.8,2.48767994]
[1761074581150,1.5552,4020.3,4019.8,2.91777994]
[1761074581362,1.5552,4020.3,4019.8,0.4301]
[1761074581563,3.19,4020.2,4019.9,2.48762131]
[1761074581765,0.50688,4020.7,4019.8,2.91778124]
[1761074582075,1.5552,4020.5,4020.0,2.48755815]
[1761074583164,1.5552,4020.5,4019.8,2.91773172]
[1761074584267,7.8952,4020.5,4019.8,2.91773172]
[1761074584465,0.50688,4020.3,4019.3,0.2214]
[1761074584669,0.50688,4020.3,4017.9,1.31597349]
[1761074584670,2.06208,4020.1,4017.9,0.002]
[1761074584974,9.529,4020.2,4018.4,0.002]
[1761074584975,2.99537073,4018.5,4018.4,0.002]
[1761074585174,5.25508,4018.5,4018.4,0.002]
[1761074585373,1.5552,4018.5,4018.4,0.002]
[1761074585571,1.5552,4018.5,4018.4,0.4321]
[1761074585572,4.7502,4018.5,4018.4,0.4321]
[1761074585772,7.23869073,4018.5,4018.4,0.002]
[1761074585978,8.21497073,4018.5,4018.4,0.002]
[1761074586268,7.74557073,4018.5,4018.4,0.002]
[1761074586468,8.21497073,4018.5,4018.4,0.002]
[1761074588187,14.22066173,4018.5,4018.4,0.002]
[1761074588363,12.89066173,4018.5,4018.4,0.002]
[1761074588565,11.40128173,4018.5,4018.4,0.002]
[1761074589271,11.40128173,4018.5,4017.9,0.002]
[1761074589272,10.60535239,4018.0,4017.9,0.002]
[1761074589578,33.07935726,4018.0,4017.9,0.002]
[1761074589783,33.54875726,4018.0,4017.9,0.002]
[1761074589996,2.99592818,4017.6,4015.3,2.49042976]
[1761074590193,2.99592818,4017.6,4015.0,2.70460307]
[1761074590194,2.99592818,4017.6,4016.1,0.214]
[1761074590195,2.99611406,4017.3,4016.1,0.214]
[1761074590371,4.55149018,4017.1,4016.1,0.214]
[1761074590565,0.50688,4016.7,4016.1,0.6441]
[1761074590770,1.5552,4016.5,4016.1,0.6441]
[1761074591404,2.48997883,4016.1,4015.0,2.70460638]
[1761074591594,2.06208,4015.9,4015.1,0.4301]
[1761074591794,1.5552,4015.7,4015.1,2.92069715]
[1761074591989,1.5552,4015.5,4015.1,0.4301]
[1761074592189,1.5552,4015.5,4015.1,2.92069135]
[1761074592405,1.5552,4015.5,4015.0,0.214]
[1761074592605,2.0246,4015.5,4014.7,0.00577145]
[1761074592902,2.49041191,4015.4,4014.7,0.00577145]
[1761074593102,2.49049007,4015.3,4014.7,0.00577145]
[1761074593302,0.50688,4014.8,4014.7,0.00577145]
[1761074593531,5.26308,4014.8,4014.7,0.00577145]
[1761074594035,7.75386409,4014.8,4014.7,0.00577145]
[1761074594556,27.28120496,4014.8,4014.7,0.00577145]
[1761074594843,32.79363096,4014.8,4014.7,0.00577145]
[1761074595043,29.76811796,4014.8,4014.7,0.00577145]
[1761074595640,31.80047296,4014.8,4014.7,0.00577145]
[1761074595869,31.80047296,4014.8,4012.9,0.214]
[1761074595870,0.50688,4014.4,4012.9,0.214]
[1761074596168,5.997858,4014.5,4012.6,0.4301]
[1761074596169,2.49176612,4013.3,4012.6,0.4301]
[1761074596310,0.50688,4012.9,4012.1,0.4301]
[1761074596510,0.50688,4012.6,4011.8,0.4301]
[1761074597212,0.50688,4012.6,4011.7,0.1531]
[1761074597470,4.04743419,4012.5,4011.7,0.1531]
[1761074597635,0.50688,4012.2,4011.7,0.1531]
[1761074597806,3.209,4012.1,4011.7,0.1531]
[1761074598010,0.50688,4012.0,4011.7,0.1531]
[1761074598225,0.50688,4012.0,4011.3,0.1531]
[1761074598427,2.9994615,4012.0,4011.3,0.1531]
[1761074598647,2.9994615,4012.0,4010.8,2.49325268]
[1761074598648,2.06208,4011.8,4010.7,0.4301]
[1761074598880,19.25854087,4012.3,4011.2,2.6461162]
[1761074598881,0.2006,4012.3,4011.2,2.6461162]
[1761074599062,0.4562,4012.7,4011.2,0.66703137]
[1761074599063,2.06208,4012.1,4011.2,0.66703137]
[1761074599381,1.5552,4011.9,4010.3,0.1531]
[1761074599581,2.49241463,4012.2,4011.1,2.64617409]
[1761074599582,3.216,4011.8,4011.1,2.64617409]
[1761074599780,1.5552,4012.2,4010.3,2.64662211]
[1761074599781,3.217,4011.7,4010.3,0.1531]
[1761074600080,21.12002087,4012.3,4011.0,2.49308761]
[1761074600081,3.217,4011.6,4011.0,2.49308761]
[1761074600295,3.218,4011.5,4010.4,0.4746]
[1761074600471,3.218,4011.5,4010.5,0.31212256]
[1761074600845,3.218,4011.5,4011.4,0.1531]
[1761074601041,3.219,4011.6,4011.4,0.1531]
[1761074601268,0.2031,4012.5,4011.4,0.1531]
[1761074601546,1.5552,4012.4,4012.2,0.214]
[1761074602293,0.80285077,4013.6,4012.1,2.70645734]
[1761074602444,0.80285077,4013.6,4012.4,2.49227395]
[1761074602445,0.1899,4013.5,4012.4,2.49227395]
[1761074602645,3.059,4013.4,4012.5,2.49218435]
[1761074602875,2.49134732,4013.9,4012.8,2.49201525]
[1761074603152,19.27464087,4014.0,4012.5,2.49219393]
[1761074603153,2.49153052,4013.6,4012.5,2.49219393]
[1761074603454,3.22,4013.5,4012.4,0.4746]
[1761074603646,3.22,4013.5,4012.8,2.49196933]
[1761074603847,1.5552,4013.4,4012.8,2.49196933]
[1761074604289,1.5552,4013.4,4010.8,3.218]
[1761074604290,0.1931,4012.9,4010.8,3.218]
[1761074604586,0.1931,4012.9,4011.4,2.64599338]
[1761074604587,2.49233676,4012.3,4011.4,2.64599338]
[1761074604782,3.221,4012.2,4011.5,0.73169934]
[1761074604948,1.5552,4012.1,4011.6,2.49274006]
[1761074605149,1.5552,4012.1,4011.6,0.4671]
[1761074605375,1.5552,4012.1,4011.8,2.49263048]
[1761074605581,1.5552,4012.1,4011.7,0.4671]
[1761074605746,1.5552,4012.1,4012.0,2.49252243]
[1761074606180,1.5552,4012.1,4011.9,2.49257706]
[1761074606484,3.221,4012.2,4011.9,2.49252886]
[1761074606485,1.5552,4012.2,4011.9,2.49252886]
[1761074606781,1.5552,4012.2,4011.4,0.1531]
[1761074606782,1.5552,4012.2,4011.6,2.6762507]
[1761074607084,1.5552,4012.2,4012.0,2.49250735]
[1761074607876,1.5552,4012.2,4011.9,0.002]
[1761074608487,4.04772243,4012.0,4011.9,0.002]
[1761074608850,4.50822243,4012.0,4011.9,0.002]
[1761074609487,4.04772243,4012.0,4011.9,0.002]
[1761074609851,4.55460243,4012.0,4011.9,0.002]
[1761074610753,0.50688,4012.0,4011.9,0.002]
[1761074611365,3.222,4012.0,4011.9,0.002]
[1761074611575,4.7762,4012.0,4011.9,0.002]
[1761074611890,1.5552,4012.0,4011.9,0.002]
[1761074612088,4.7762,4012.0,4011.9,0.002]
[1761074612391,1.5552,4012.0,4011.9,0.002]
[1761074612590,4.7752,4012.0,4011.9,0.002]
[1761074613356,4.7762,4012.0,4011.9,0.002]
[1761074614968,8.19480243,4012.0,4011.9,0.002]
[1761074615360,21.1458712,4012.0,4011.9,0.002]
[1761074615691,10.68728243,4012.0,4011.9,0.002]
[1761074616277,8.21280243,4012.0,4011.9,0.002]
[1761074616456,8.27043043,4012.0,4011.9,0.002]
[1761074616668,5.30108,4012.0,4011.9,0.002]
[1761074616894,1.5552,4012.0,4011.9,0.002]
[1761074617058,4.7942,4012.0,4011.9,0.002]
[1761074617478,5.30108,4012.0,4011.9,0.002]
[1761074617988,4.7942,4012.0,4011.9,0.002]
[1761074618402,1.5552,4012.0,4011.9,0.002]
[1761074618602,4.7942,4012.0,4011.9,0.002]
[1761074620814,2.68500832,4013.0,4012.0,2.49246227]
[1761074621125,2.06208,4012.8,4012.1,0.1683]
[1761074621280,0.50688,4012.8,4012.1,2.66075726]
[1761074621485,3.236,4012.7,4012.1,2.66074844]
[1761074621684,2.49172758,4013.3,4012.1,2.66074844]
[1761074621685,0.39080307,4013.4,4012.4,2.4922423]
[1761074621918,3.236,4013.3,4012.5,0.49202211]
[1761074622096,3.236,4013.3,4012.6,2.49210628]
[1761074622301,0.4585,4013.9,4012.8,2.49197962]
[1761074622302,2.94985253,4013.9,4012.8,2.49197962]
[1761074622535,2.49154663,4013.6,4012.7,0.4671]
[1761074622733,0.50688,4013.6,4012.7,0.4671]
[1761074622903,4.04680133,4013.5,4012.7,0.4671]
[1761074623218,0.4585,4013.9,4012.8,2.49200191]
[1761074623407,3.236,4013.8,4012.9,2.49196268]
[1761074623612,1.5552,4013.7,4012.9,2.49196268]
[1761074624212,1.5552,4013.7,4012.7,0.4671]
[1761074624528,1.5552,4013.7,4012.1,0.1683]
[1761074624529,2.99864625,4013.3,4012.1,0.1683]
[1761074624688,2.49192488,4013.0,4012.1,0.1683]
[1761074624888,2.49216215,4012.6,4012.1,0.1683]
[1761074625087,3.235,4012.5,4012.1,0.1683]
[1761074625320,3.235,4012.4,4011.9,0.002]
[1761074625488,0.50688,4012.0,4011.9,0.002]
[1761074625689,6.23440243,4012.0,4011.9,0.002]
[1761074625913,7.78960243,4012.0,4011.9,0.002]
[1761074626117,8.24550243,4012.0,4011.9,0.002]
[1761074627116,4.7892,4012.0,4011.9,0.002]
[1761074627633,4.7902,4012.0,4011.9,0.002]
[1761074629290,1.5552,4012.0,4011.9,0.002]
[1761074629490,0.1931,4013.3,4011.9,0.4691]
[1761074629720,3.234,4013.2,4012.0,0.1683]
[1761074629923,3.234,4013.2,4011.9,0.002]
[1761074629924,19.05794087,4013.0,4011.9,0.002]
[1761074630123,2.06208,4012.8,4011.9,0.002]
[1761074630324,0.50688,4012.6,4012.0,0.4671]
[1761074630625,19.05794087,4013.5,4012.0,0.4671]
[1761074630626,2.68484302,4013.3,4012.1,2.66075703]
[1761074630824,2.88231353,4013.6,4012.1,2.66075703]
[1761074630825,3.237,4013.2,4012.2,2.80537045]
[1761074631126,1.5552,4013.0,4012.4,2.49222954]